fUST/lending_fUST_20240501
["ID","MTS","AMOUNT","RATE_DAILY","PERIOD"]
[325130973,1714535420733,-500.0,0.00068493,120]
[325130974,1714535420759,-750.0,0.00068493,120]
[325130975,1714535420785,-1000.0,0.00068493,120]
[325130976,1714535420810,-1008.32913404,0.00068493,120]
[325130977,1714535420836,-165.556359,0.00068532,120]
[325130978,1714535420862,-154.65974855,0.00069,7]
[325130979,1714535420889,-294.361781,0.00069,120]
[325130980,1714535420915,-1000.0,0.00069145,120]
[325130981,1714535420940,-1000.0,0.000727,120]
[325130982,1714535420967,-165.556359,0.00074755,120]
[325130983,1714535420992,-1000.0,0.0007621,120]
[325130984,1714535421107,-137110.12109785,0.0008,7]
[325130985,1714535421136,-300.0,0.0008,105]
[325130986,1714535421163,-165.556359,0.00080978,120]
[325130987,1714535421193,-300.0,0.000815,106]
[325130988,1714535421219,-300.0,0.00083,107]
[325130989,1714535421245,-1000.0,0.00083184,120]
[325130990,1714535421272,-1000.0,0.00083499,90]
[325130991,1714535421300,-158.673999,0.00084712,120]
[325130992,1714535421326,-232.3,0.00084788,120]
[325130993,1714535421353,-150.65349696,0.00086098,2]
[325130994,1714535421378,-165.556359,0.00087202,120]
[325130995,1714535421405,-301.30699391,0.00087545,4]
[325130996,1714535421431,-1000.0,0.00089119,120]
[325130997,1714535421457,-165.556359,0.00093425,120]
[325130998,1714535421484,-1000.0,0.00095764,120]
[325130999,1714535421511,-165.556359,0.00099648,120]
[325131000,1714535421539,-151.0,0.001,120]
[325131001,1714535421591,151.0,0.00048219,120]
[325131002,1714535421640,203.8574549,0.00054965,60]
[325131003,1714535421677,151.0,0.00049288,120]
[325131004,1714535421937,151.0,0.00050356,120]
[325131005,1714535422503,151.0,0.00051425,120]
[325131006,1714535422591,554.16230052,0.0005656,120]
[325131007,1714535422895,1000.0,0.00061293,120]
[325131008,1714535422983,554.16230052,0.0005656,120]
[325131009,1714535423076,151.0,0.00052493,120]
[325131010,1714535423212,203.8574549,0.00054965,60]
[325131011,1714535423400,554.16230052,0.0005656,120]
[325131012,1714535423666,151.0,0.00053562,120]
[325131013,1714535423782,554.16230052,0.0005656,120]
[325131014,1714535424093,554.16230052,0.0005656,120]
[325131015,1714535424238,151.0,0.0005463,120]
[325131016,1714535424409,554.16230052,0.0005656,120]
[325131017,1714535424713,554.16230052,0.0005656,120]
[325131018,1714535424842,151.0,0.00055699,120]
[325131019,1714535425489,151.0,0.00056767,120]
[325131020,1714535425870,554.16230052,0.0005656,120]
[325131021,1714535425961,151.0,0.00057836,120]
[325131022,1714535426228,554.16230052,0.0005656,120]
[325131023,1714535426530,151.0,0.00058904,120]
[325131024,1714535426567,554.16230052,0.0005656,120]
[325131025,1714535426888,554.16230052,0.0005656,120]
[325131026,1714535427320,554.16230052,0.0005656,120]
[325131027,1714535427427,151.0,0.00059973,120]
[325131028,1714535427528,554.16230052,0.0005656,120]
[325131029,1714535427859,554.16230052,0.0005656,120]
[325131030,1714535428012,151.0,0.00061041,120]
[325131031,1714535428049,274.65022529,0.00020913,2]
[325131032,1714535428189,554.16230052,0.0005656,120]
[325131033,1714535428508,554.16230052,0.0005656,120]
[325131034,1714535428580,151.0,0.0006211,120]
[325131035,1714535428834,554.16230052,0.0005656,120]
[325131036,1714535429157,151.0,0.00063178,120]
[325131037,1714535429187,554.16230052,0.0005656,120]
[325131038,1714535429506,554.16230052,0.0005656,120]
[325131039,1714535429743,151.0,0.00064247,120]
[325131040,1714535429843,554.66,0.0005656,120]
[325131041,1714535430151,2216.72420207,0.0005656,120]
[325131042,1714535430318,151.0,0.00065315,120]
[325131043,1714535430517,2216.72420207,0.0005656,120]
[325131044,1714535430848,2216.72420207,0.0005656,120]
[325131045,1714535430882,151.0,0.00066384,120]
[325131047,1714535431174,2216.72420207,0.0005656,120]
[325131052,1714535431472,151.0,0.00067452,120]
[325131053,1714535431539,2216.72420207,0.0005656,120]
[325131055,1714535431870,2216.72420207,0.0005656,120]
[325131056,1714535431980,-158.673999,0.00102137,120]
[325131057,1714535431989,-1000.0,0.0010293,120]
[325131058,1714535431999,-165.556359,0.00105871,120]
[325131059,1714535432008,-135.7696421,0.00109589,120]
[325131060,1714535432043,151.0,0.00068521,120]
[325131061,1714535432056,-364.2303579,0.00109589,120]
[325131062,1714535432065,-187.7201612,0.00109589,120]
[325131063,1714535432076,-312.2798388,0.00109589,120]
[325131064,1714535432086,-500.0,0.00109589,120]
[325131065,1714535432101,-500.0,0.00109589,120]
[325131066,1714535432110,-500.0,0.00109589,2]
[325131067,1714535432119,-500.0,0.00109589,120]
[325131068,1714535432130,-500.0,0.00109589,120]
[325131069,1714535432140,-500.0,0.00109589,120]
[325131070,1714535432149,-500.0,0.00109589,120]
[325131071,1714535432161,-500.0,0.00109589,120]
[325131072,1714535432171,-500.0,0.00109589,120]
[325131073,1714535432181,-500.0,0.00109589,120]
[325131074,1714535432191,-500.0,0.00109589,120]
[325131075,1714535432200,-500.0,0.00109589,120]
[325131076,1714535432209,-1124.64,0.00109589,2]
[325131077,1714535432218,-3197.17,0.00109589,120]
[325131078,1714535432227,-500.0,0.00109589,120]
[325131079,1714535432236,-500.0,0.00109589,120]
[325131080,1714535432245,-500.0,0.00109589,120]
[325131081,1714535432255,-500.0,0.00109589,120]
[325131082,1714535432264,-500.4961244,0.00109589,120]
[325131083,1714535432274,-505.04628067,0.00109589,120]
[325131084,1714535432283,-500.0,0.00109589,120]
[325131085,1714535432293,-525.21635651,0.00109589,120]
[325131086,1714535432302,-500.0,0.00109589,120]
[325131087,1714535432311,-1314.09,0.00109589,120]
[325131088,1714535432321,-500.0,0.00109589,120]
[325131089,1714535432330,-501.72161312,0.00109589,120]
[325131090,1714535432339,-500.0,0.00109589,120]
[325131091,1714535432349,-503.21217433,0.00109589,120]
[325131092,1714535432359,-502.41951172,0.00109589,120]
[325131093,1714535432368,-503.96709875,0.00109589,120]
[325131094,1714535432377,-503.45575842,0.00109589,120]
[325131095,1714535432386,-365.14144039,0.00109589,20]
[325131096,1714535432397,-513.01665793,0.00109589,120]
[325131097,1714535432406,-371.26049156,0.00109589,120]
[325131098,1714535432415,-505.22199693,0.00109589,120]
[325131099,1714535432425,-500.0,0.00109589,120]
[325131100,1714535432435,-514.60106432,0.00109589,120]
[325131101,1714535432455,-858.67,0.00109589,120]
[325131102,1714535432465,-500.0,0.00109589,120]
[325131103,1714535432476,-503.42686278,0.00109589,30]
[325131104,1714535432485,-503.18244759,0.00109589,120]
[325131105,1714535432495,-500.0,0.00109589,120]
[325131106,1714535432504,-500.0,0.00109589,120]
[325131107,1714535432514,-500.0,0.00109589,120]
[325131108,1714535432524,-516.17048376,0.00109589,120]
[325131109,1714535432534,-500.0,0.00109589,120]
[325131110,1714535432544,-504.43064323,0.00109589,120]
[325131111,1714535432554,-500.86655159,0.00109589,120]
[325131112,1714535432564,-501.37704937,0.00109589,120]
[325131113,1714535432573,-500.74319217,0.00109589,120]
[325131114,1714535432583,-500.0,0.00109589,120]
[325131115,1714535432593,-500.0,0.00109589,120]
[325131116,1714535432603,-500.63662103,0.00109589,120]
[325131117,1714535432612,-502.44148202,0.00109589,120]
[325131118,1714535432622,-607.27199167,0.00109589,120]
[325131119,1714535432631,-500.0,0.00109589,120]
[325131120,1714535432641,-503.80691186,0.00109589,120]
[325131121,1714535432651,-502.15753858,0.00109589,120]
[325131122,1714535432660,-500.0,0.00109589,120]
[325131123,1714535432670,-501.23188969,0.00109589,120]
[325131124,1714535432680,-500.0,0.00109589,120]
[325131125,1714535432689,-500.0,0.00109589,120]
[325131126,1714535432699,-500.0,0.00109589,120]
[325131127,1714535432708,-501.61100896,0.00109589,120]
[325131128,1714535432718,-501.75869966,0.00109589,120]
[325131129,1714535432727,-500.83069279,0.00109589,120]
[325131130,1714535432737,-369.25973567,0.00109589,120]
[325131131,1714535432746,-190.77695748,0.00109589,120]
[325131132,1714535432756,-500.0,0.00109589,120]
[325131133,1714535432766,-500.37952612,0.00109589,120]
[325131134,1714535432775,-504.95664034,0.00109589,120]
[325131135,1714535432784,-500.70258277,0.00109589,120]
[325131136,1714535432794,-505.99730175,0.00109589,120]
[325131137,1714535432803,-241.4987719,0.00109589,120]
[325131138,1714535432812,-500.0,0.00109589,120]
[325131139,1714535432822,-500.0,0.00109589,120]
[325131140,1714535432831,-2804.76,0.00109589,120]
[325131141,1714535432842,-500.87945794,0.00109589,120]
[325131142,1714535432957,-501.83533882,0.00109589,120]
[325131143,1714535432967,-301.78688122,0.00109589,7]
[325131144,1714535432977,-500.82008952,0.00109589,120]
[325131145,1714535432986,-208.3697921,0.00109589,120]
[325131146,1714535432995,-500.0,0.00109589,120]
[325131147,1714535433005,-500.46034649,0.00109589,120]
[325131148,1714535433014,-500.28759022,0.00109589,120]
[325131149,1714535433023,-1875.12,0.00109589,120]
[325131150,1714535433032,-317.79790342,0.00109589,120]
[325131151,1714535433041,-59.82304986,0.00109589,120]
[325131152,1714535433299,2216.72420207,0.0005656,120]
[325131153,1714535433360,2216.72420207,0.0005656,120]
[325131154,1714535433392,151.0,0.00069589,120]
[325131155,1714535433442,2216.72420207,0.0005656,120]
[325131156,1714535433490,151.0,0.00070658,120]
[325131157,1714535433889,151.0,0.00071726,120]
[325131158,1714535434471,151.0,0.00072795,120]
[325131159,1714535434611,2216.72420207,0.0005656,120]
[325131160,1714535434934,2216.72420207,0.0005656,120]
[325131161,1714535435046,151.0,0.00073863,120]
[325131162,1714535435290,2216.72420207,0.0005656,120]
[325131163,1714535435618,151.0,0.00074932,120]
[325131164,1714535435648,2216.72420207,0.0005656,120]
[325131165,1714535435985,2216.72420207,0.0005656,120]
[325131166,1714535436292,2216.72420207,0.0005656,120]
[325131167,1714535436632,2216.72420207,0.0005656,120]
[325131168,1714535436963,2216.72420207,0.0005656,120]
[325131169,1714535437291,2216.72420207,0.0005656,120]
[325131249,1714535438350,-2216.72420207,0.0005656,120]
[325131250,1714535438360,-2217.22,0.0005656,120]
[325131251,1714535438369,-440.17695014,0.00109589,120]
[325131252,1714535438378,-513.02748896,0.00109589,120]
[325131253,1714535438387,-500.42436663,0.00109589,120]
[325131254,1714535438397,-500.40937958,0.00109589,120]
[325131255,1714535438406,-500.0,0.00109589,120]
[325131256,1714535438415,-500.18668381,0.00109589,120]
[325131257,1714535438424,-500.0,0.00109589,120]
[325131258,1714535438433,-3221.6,0.00109589,120]
[325131259,1714535438442,-500.0,0.00109589,120]
[325131260,1714535438451,-500.0,0.00109589,120]
[325131261,1714535438460,-501.16239058,0.00109589,7]
[325131262,1714535438468,-915.55,0.00109589,120]
[325131263,1714535438478,-500.0,0.00109589,120]
[325131264,1714535438486,-500.0,0.00109589,120]
[325131265,1714535438495,-1000.0,0.00109589,120]
[325131266,1714535438504,-500.0,0.00109589,120]
[325131267,1714535438513,-2600.78,0.00109589,120]
[325131268,1714535438522,-48.99529307,0.00109589,120]
[325131269,1714535438537,-124.97327538,0.00109589,120]
[325131270,1714535438547,-249.61869859,0.00109589,120]
[325131271,1714535438556,-551.86443502,0.00109589,120]
[325131272,1714535438565,-501.02459824,0.00109589,120]
[325131273,1714535438574,-506.72546066,0.00109589,120]
[325131274,1714535438584,-500.0,0.00109589,120]
[325131275,1714535438593,-500.0,0.00109589,120]
[325131276,1714535438602,-155.12498647,0.00109589,120]
[325131277,1714535438610,-500.0,0.00109589,120]
[325131278,1714535438619,-10617.77,0.00109589,120]
[325131279,1714535438628,-501.5817242,0.00109589,120]
[325131280,1714535438637,-477.38311973,0.00109589,120]
[325131281,1714535438646,-500.0,0.00109589,120]
[325131282,1714535438655,-500.0,0.00109589,7]
[325131283,1714535438666,-500.0,0.00109589,120]
[325131284,1714535438675,-501.96556134,0.00109589,120]
[325131285,1714535438685,-481.78261855,0.00109589,120]
[325131286,1714535438695,-500.0,0.00109589,120]
[325131287,1714535438704,-500.0,0.00109589,120]
[325131288,1714535438713,-505.99143298,0.00109589,120]
[325131289,1714535438723,-502.16837306,0.00109589,120]
[325131290,1714535438733,-515.63289179,0.00109589,120]
[325131291,1714535438743,-500.0,0.00109589,120]
[325131292,1714535438752,-500.0,0.00109589,120]
[325131293,1714535438761,-424.89472744,0.00109589,120]
[325131294,1714535438773,-503.52158863,0.00109589,120]
[325131295,1714535438784,-500.0,0.00109589,120]
[325131296,1714535438793,-500.0,0.00109589,120]
[325131297,1714535438803,-500.0,0.00109589,21]
[325131298,1714535438812,-500.0,0.00109589,120]
[325131299,1714535438821,-500.0,0.00109589,120]
[325131300,1714535438830,-1672.97,0.00109589,120]
[325131301,1714535438911,-500.0,0.00109589,120]
[325131302,1714535438922,-500.0,0.00109589,120]
[325131303,1714535438931,-500.0,0.00109589,120]
[325131304,1714535438941,-500.0,0.00109589,120]
[325131305,1714535438950,-500.0,0.00109589,120]
[325131306,1714535438959,-500.0,0.00109589,120]
[325131307,1714535438968,-500.0,0.00109589,120]
[325131308,1714535438977,-500.0,0.00109589,120]
[325131309,1714535438987,-1187.5,0.00109589,120]
[325131310,1714535438995,-500.0,0.00109589,120]
[325131311,1714535439005,-500.0,0.00109589,120]
[325131312,1714535439015,-985.82,0.00109589,120]
[325131313,1714535439023,-517.02177769,0.00109589,120]
[325131314,1714535439032,-2038.18,0.00109589,120]
[325131315,1714535439042,-500.0,0.00109589,120]
[325131316,1714535439052,-500.0,0.00109589,120]
[325131317,1714535439061,-516.72858567,0.00109589,120]
[325131318,1714535439071,-500.0,0.00109589,120]
[325131319,1714535439080,-504.1933674,0.00109589,120]
[325131320,1714535439091,-500.0,0.00109589,120]
[325131321,1714535439104,-500.0,0.00109589,120]
[325131322,1714535439113,-500.0,0.00109589,120]
[325131323,1714535439122,-500.0,0.00109589,120]
[325131324,1714535439131,-500.0,0.00109589,120]
[325131325,1714535439142,-1164.54,0.00109589,120]
[325131326,1714535439152,-2237.77,0.00109589,120]
[325131327,1714535439161,-500.0,0.00109589,120]
[325131328,1714535439171,-239.37878792,0.00109589,120]
[325131329,1714535439180,-501.41323485,0.00109589,120]
[325131330,1714535439190,-500.0,0.00109589,120]
[325131331,1714535439199,-1000.0,0.0010959,120]
[325131332,1714535439208,-47180.80025845,0.0011,120]
[325131333,1714535439217,-165.556359,0.00112094,120]
[325131334,1714535439227,-1000.0,0.0011459,120]
[325131335,1714535439236,-165.556359,0.00118317,120]
[325131336,1714535439245,-158.673999,0.00119562,120]
[325131337,1714535439254,-3396.3,0.00120537,3]
[325131338,1714535439263,-500.0,0.00120546,120]
[325131339,1714535439272,-500.0,0.00120546,120]
[325131340,1714535439281,-500.0,0.00120546,120]
[325131341,1714535439290,-500.0,0.00120546,120]
[325131342,1714535439301,-500.0,0.00120547,120]
[325131343,1714535439310,-500.0,0.00120547,120]
[325131344,1714535439319,-445.94,0.00120547,120]
[325131345,1714535439327,-617.03649801,0.00120547,120]
[325131346,1714535439336,-529.51,0.00120547,120]
[325131347,1714535439345,-500.0,0.00120547,120]
[325131348,1714535439354,-1124.64,0.00120547,2]
[325131349,1714535439364,-3197.17,0.00120547,120]
[325131350,1714535439373,-500.0,0.00120547,120]
[325131351,1714535439382,-500.0,0.00120547,120]
[325131352,1714535439391,-500.0,0.00120547,120]
[325131353,1714535439400,-500.0,0.00120547,120]
[325131354,1714535439410,-590.59064369,0.00120547,120]
[325131355,1714535439420,-1314.09,0.00120547,120]
[325131356,1714535439431,-500.0,0.00120547,120]
[325131357,1714535439442,-500.0,0.00120547,120]
[325131358,1714535439452,-500.0,0.00120547,120]
[325131359,1714535439462,-858.67,0.00120547,120]
[325131360,1714535439471,-504.1258663,0.00120547,120]
[325131361,1714535439480,-500.0,0.00120547,120]
[325131362,1714535439490,-500.0,0.00120547,120]
[325131363,1714535439499,-500.0,0.00120547,120]
[325131364,1714535439508,-500.0,0.00120547,120]
[325131365,1714535439517,-498.36308607,0.00120547,120]
[325131366,1714535439526,-500.0,0.00120547,120]
[325131367,1714535439535,-500.0,0.00120547,120]
[325131368,1714535439544,-500.0,0.00120547,120]
[325131369,1714535439554,-502.46984551,0.00120547,120]
[325131370,1714535439563,-348.55332705,0.00120547,120]
[325131371,1714535439572,-500.0,0.00120547,120]
[325131372,1714535439581,-500.0,0.00120547,120]
[325131374,1714535439590,-2804.76,0.00120547,120]
[325131376,1714535439599,-500.0,0.00120547,120]
[325131378,1714535439608,-1875.12,0.00120547,120]
[325131380,1714535439618,-500.0,0.00120547,120]
[325131383,1714535439627,-501.67800023,0.00120547,120]
[325131386,1714535439636,-3221.6,0.00120547,120]
[325131389,1714535439645,-500.0,0.00120547,120]
[325131392,1714535439654,-500.0,0.00120547,120]
[325131394,1714535439663,-915.55,0.00120547,120]
[325131397,1714535439673,-500.0,0.00120547,120]
[325131399,1714535439682,-502.77129167,0.00120547,120]
[325131401,1714535439691,-1000.0,0.00120547,120]
[325131403,1714535439700,-500.0,0.00120547,120]
[325131405,1714535439709,-2600.78,0.00120547,120]
[325131407,1714535439718,-500.0,0.00120547,120]
[325131409,1714535439727,-10617.77,0.00120547,120]
[325131411,1714535439736,-287.33144649,0.00120547,7]
[325131413,1714535439746,-505.18375007,0.00120547,120]
[325131415,1714535439755,-500.0,0.00120547,120]
[325131417,1714535439763,-348.35489215,0.00120547,120]
[325131418,1714535439772,-500.0,0.00120547,120]
[325131420,1714535439781,-500.0,0.00120547,120]
[325131421,1714535439791,-500.0,0.00120547,120]
[325131422,1714535439800,-500.0,0.00120547,120]
[325131424,1714535439809,-500.0,0.00120547,21]
[325131426,1714535439818,-500.0,0.00120547,120]
[325131428,1714535439827,-500.0,0.00120547,120]
[325131430,1714535439836,-1672.97,0.00120547,120]
[325131432,1714535439846,-500.0,0.00120547,120]
[325131434,1714535439855,-500.0,0.00120547,120]
[325131436,1714535439865,-501.85925368,0.00120547,120]
[325131438,1714535439874,-500.0,0.00120547,120]
[325131441,1714535439883,-500.0,0.00120547,120]
[325131444,1714535439893,-638.02563971,0.00120547,120]
[325131447,1714535439902,-500.0,0.00120547,120]
[325131451,1714535439912,-1187.5,0.00120547,120]
[325131454,1714535439921,-500.0,0.00120547,120]
[325131457,1714535439930,-985.82,0.00120547,120]
[325131459,1714535439939,-201.75300465,0.00120547,120]
[325131463,1714535439948,-2038.18,0.00120547,120]
[325131466,1714535439958,-500.00049602,0.00120547,120]
[325131469,1714535439967,-496.59077021,0.00120547,120]
[325131471,1714535439976,-500.0,0.00120547,120]
[325131475,1714535439986,-500.0,0.00120547,120]
[325131477,1714535439995,-500.0,0.00120547,120]
[325131481,1714535440006,-500.0,0.00120547,120]
[325131484,1714535440015,-571.37815286,0.00120547,120]
[325131487,1714535440024,-208.99471503,0.00120547,120]
[325131489,1714535440034,-1164.54,0.00120547,120]
[325131493,1714535440043,-2237.77,0.00120547,120]
[325131495,1714535440054,-500.0,0.00120547,120]
[325131498,1714535440063,-500.82733921,0.00120547,120]
[325131502,1714535440074,-153.52140436,0.00123678,120]
[325131505,1714535440084,-165.556359,0.0012454,120]
[325131508,1714535440098,-2000.0,0.00125,120]
[325131511,1714535440107,-1000.0,0.0012658,120]
[325131514,1714535440117,-10000.0,0.00130047,120]
[325131516,1714535440128,-165.556359,0.00130763,120]
[325131520,1714535440138,-500.0,0.00131505,120]
[325131522,1714535440147,-500.0,0.00131505,120]
[325131525,1714535440156,-500.0,0.00131505,120]
[325131528,1714535440167,-151.0,0.00131505,120]
[325131532,1714535440178,-151.0,0.00131505,120]
[325131534,1714535440187,-151.0,0.00131505,120]
[325131536,1714535440196,-221.437198,0.00131505,120]
[325131539,1714535440206,-500.0,0.00131506,120]
[325131542,1714535440215,-500.0,0.00131506,120]
[325131544,1714535440224,-1124.64,0.00131506,2]
[325131548,1714535440234,-3197.17,0.00131506,120]
[325131551,1714535440243,-500.0,0.00131506,120]
[325131554,1714535440252,-580.05,0.00131506,120]
[325131557,1714535440262,-500.0,0.00131506,120]
[325131560,1714535440271,-500.0,0.00131506,120]
[325131563,1714535440281,-1314.09,0.00131506,120]
[325131566,1714535440290,-500.0,0.00131506,120]
[325131569,1714535440300,-500.0,0.00131506,120]
[325131572,1714535440309,-500.0,0.00131506,120]
[325131574,1714535440318,-858.67,0.00131506,120]
[325131577,1714535440328,-191.68642507,0.00131506,120]
[325131580,1714535440337,-500.0,0.00131506,120]
[325131583,1714535440346,-503.001243,0.00131506,120]
[325131586,1714535440355,-242.09510434,0.00131506,120]
[325131588,1714535440365,-500.0,0.00131506,120]
[325131591,1714535440375,-500.0,0.00131506,120]
[325131593,1714535440384,-2804.76,0.00131506,120]
[325131596,1714535440394,-1875.12,0.00131506,120]
[325131599,1714535440403,-500.0,0.00131506,120]
[325131601,1714535440412,-3221.6,0.00131506,120]
[325131604,1714535440421,-500.0,0.00131506,120]
[325131606,1714535440430,-915.55,0.00131506,120]
[325131609,1714535440440,-540.23816417,0.00131506,120]
[325131611,1714535440449,-1000.0,0.00131506,120]
[325131614,1714535440458,-173.08795561,0.00131506,120]
[325131616,1714535440468,-2600.78,0.00131506,120]
[325131619,1714535440477,-10617.77,0.00131506,120]
[325131621,1714535440487,-500.0,0.00131506,120]
[325131624,1714535440497,-151.0,0.00131506,120]
[325131626,1714535440506,-517.26153687,0.00131506,120]
[325131629,1714535440515,-500.0,0.00131506,120]
[325131632,1714535440525,-500.0,0.00131506,120]
[325131634,1714535440536,-500.0,0.00131506,120]
[325131637,1714535440545,-500.0,0.00131506,120]
[325131639,1714535440556,-500.0,0.00131506,21]
[325131642,1714535440565,-500.0,0.00131506,120]
[325131644,1714535440574,-1672.97,0.00131506,120]
[325131647,1714535440584,-500.0,0.00131506,120]
[325131649,1714535440594,-594.31,0.00131506,120]
[325131652,1714535440603,-500.0,0.00131506,120]
[325131655,1714535440612,-249.98831701,0.00131506,120]
[325131657,1714535440621,-500.0,0.00131506,120]
[325131660,1714535440630,-1187.5,0.00131506,120]
[325131663,1714535440640,-500.0,0.00131506,120]
[325131665,1714535440649,-151.646833,0.00131506,120]
[325131668,1714535440659,-985.82,0.00131506,120]
[325131671,1714535440668,-2038.18,0.00131506,120]
[325131673,1714535440678,-500.0,0.00131506,120]
[325131675,1714535440688,-151.0,0.00131506,120]
[325131677,1714535440698,-316.84030073,0.00131506,120]
[325131679,1714535440707,-500.0,0.00131506,120]
[325131682,1714535440716,-372.66724936,0.00131506,120]
[325131685,1714535440725,-1164.54,0.00131506,120]
[325131688,1714535440734,-2237.77,0.00131506,120]
[325131701,1714535440813,-151.0,0.00131506,120]
[325131703,1714535440822,-151.0,0.00131506,120]
[325131705,1714535440832,-500.0,0.00131506,120]
[325131707,1714535440842,-2000.0,0.00135,120]
[325131709,1714535440851,-999.0,0.00135998,120]
[325131711,1714535440860,-999.0,0.00135998,120]
[325131713,1714535440870,-999.0,0.00135998,120]
[325131715,1714535440879,-999.0,0.00135998,120]
[325131717,1714535440889,-999.0,0.00135998,120]
[325131719,1714535440898,-500.0,0.00135999,120]
[325131721,1714535440907,-500.43414424,0.00135999,120]
[325131723,1714535440916,-523.47522486,0.00135999,120]
[325131725,1714535440925,-500.75853599,0.00135999,120]
[325131727,1714535440934,-500.4323923,0.00135999,120]
[325131729,1714535440943,-500.0,0.00135999,120]
[325131731,1714535440952,-500.0,0.00135999,120]
[325131733,1714535440960,-500.0,0.00135999,120]
[325131735,1714535440969,-500.0,0.00135999,120]
[325131737,1714535440978,-500.0,0.00135999,120]
[325131739,1714535440987,-500.0,0.00135999,120]
[325131741,1714535440996,-300.0,0.00135999,120]
[325131743,1714535441005,-500.0,0.00135999,120]
[325131745,1714535441015,-500.0,0.00135999,120]
[325131747,1714535441023,-504.98,0.00135999,120]
[325131749,1714535441033,-500.0,0.00135999,120]
[325131751,1714535441042,-500.0,0.00135999,120]
[325131753,1714535441052,-500.0,0.00135999,120]
[325131755,1714535441062,-502.92570621,0.00135999,120]
[325131757,1714535441070,-500.0,0.00135999,120]
[325131759,1714535441079,-500.0,0.00135999,120]
[325131761,1714535441089,-500.0,0.00135999,120]
[325131763,1714535441098,-500.0,0.00135999,120]
[325131764,1714535441109,-502.58259059,0.00135999,120]
[325131766,1714535441118,-529.41612635,0.00135999,120]
[325131768,1714535441128,-500.0,0.00135999,120]
[325131770,1714535441136,-500.0,0.00135999,120]
[325131772,1714535441148,-506.23410785,0.00135999,120]
[325131774,1714535441157,-501.07657446,0.00135999,120]
[325131776,1714535441167,-151.0,0.00135999,120]
[325131779,1714535441176,-151.0,0.00135999,120]
[325131781,1714535441187,-151.0,0.00135999,120]
[325131783,1714535441197,-232.3,0.0013631,120]
[325131785,1714535441207,-10000.0,0.0013668,120]
[325131786,1714535441216,-500.0,0.00136986,120]
[325131789,1714535441225,-500.0,0.00136986,120]
[325131790,1714535441234,-500.0,0.00136986,120]
[325131792,1714535441243,-401.25058533,0.00136986,120]
[325131793,1714535441252,-158.673999,0.00136986,120]
[325131794,1714535441262,-165.556359,0.00136986,120]
[325131795,1714535441271,-329.31489999,0.00142332,14]
[325131796,1714535441280,-500.0,0.00142464,120]
[325131797,1714535441289,-553.56089705,0.00142464,120]
[325131798,1714535441297,-500.0,0.00142464,120]
[325131799,1714535441308,-500.0,0.00142465,120]
[325131800,1714535441316,-500.0,0.00142465,120]
[325131801,1714535441325,-1124.64,0.00142465,2]
[325131802,1714535441334,-3197.17,0.00142465,120]
[325131803,1714535441343,-500.0,0.00142465,120]
[325131804,1714535441352,-255.86,0.00142465,120]
[325131805,1714535441362,-500.0,0.00142465,120]
[325131806,1714535441371,-1314.09,0.00142465,120]
[325131807,1714535441380,-500.0,0.00142465,120]
[325131808,1714535441389,-500.0,0.00142465,120]